fUSD/lending_fUSD_20240425
["ID","MTS","AMOUNT","RATE_DAILY","PERIOD"]
[323548321,1714081860433,-500.0,0.00011506,2]
[323548322,1714081860442,-1155.48,0.00011506,2]
[323548323,1714081860451,-1561.24,0.00011506,2]
[323548324,1714081860461,-753.39,0.00011506,2]
[323548325,1714081860470,-500.0,0.00011506,2]
[323548326,1714081860479,-500.0,0.00011506,2]
[323548327,1714081860489,-2165.69,0.00011506,2]
[323548328,1714081860498,-500.0,0.00011506,2]
[323548329,1714081860508,-500.0,0.00011506,2]
[323548330,1714081860517,-500.0,0.00011506,2]
[323548331,1714081860526,-500.0,0.00011506,2]
[323548332,1714081860536,-500.0,0.00011506,2]
[323548333,1714081860545,-500.0,0.00011506,2]
[323548334,1714081860554,-500.0,0.00011506,2]
[323548335,1714081860563,-1047.16,0.00011506,2]
[323548336,1714081860572,-500.0,0.00011506,2]
[323548337,1714081860581,-797.38,0.00011506,2]
[323548338,1714081860591,-500.0,0.00011506,2]
[323548339,1714081860600,-621.92,0.00011506,2]
[323548340,1714081860610,-8911.27,0.00011506,2]
[323548341,1714081860620,-500.0,0.00011506,2]
[323548342,1714081860630,-500.0,0.00011506,2]
[323548343,1714081860640,-329.24,0.00011506,2]
[323548344,1714081860649,-500.0,0.00011506,2]
[323548345,1714081860659,-500.0,0.00011506,2]
[323548346,1714081860669,-1247.38,0.00011506,2]
[323548347,1714081860679,-500.0,0.00011506,2]
[323548348,1714081860688,-1170.69,0.00011506,2]
[323548349,1714081860697,-500.0,0.00011506,2]
[323548350,1714081860706,-2350.52,0.00011506,2]
[323548351,1714081860716,-2391.36,0.00011506,2]
[323548352,1714081860725,-500.0,0.00011506,2]
[323548353,1714081860735,-500.0,0.00011506,2]
[323548354,1714081860744,-500.0,0.00011506,2]
[323548355,1714081860754,-500.0,0.00011506,2]
[323548356,1714081860763,-861.93,0.00011506,2]
[323548357,1714081860773,-1383.8,0.00011506,2]
[323548358,1714081860782,-500.0,0.00011506,2]
[323548359,1714081860792,-703.52,0.00011506,2]
[323548360,1714081860801,-751.23,0.00011506,2]
[323548361,1714081860810,-500.0,0.00011506,2]
[323548362,1714081860819,-500.0,0.00011506,2]
[323548363,1714081860829,-1224.05,0.00011506,2]
[323548364,1714081860838,-500.0,0.00011506,2]
[323548365,1714081860850,-150.0,0.00011506,2]
[323548366,1714081860859,-500.0,0.00011506,2]
[323548367,1714081860869,-500.0,0.00011506,2]
[323548368,1714081860880,-21291.09,0.00011506,2]
[323548369,1714081860893,-500.0,0.00011506,2]
[323548370,1714081860903,-500.0,0.00011506,2]
[323548371,1714081860911,-500.0,0.00011506,2]
[323548372,1714081860921,-500.0,0.00011506,2]
[323548373,1714081860932,-500.0,0.00011506,2]
[323548374,1714081860941,-2526.38,0.00011506,2]
[323548375,1714081860951,-500.0,0.00011506,2]
[323548376,1714081860965,-500.0,0.00011506,2]
[323548377,1714081860974,-500.0,0.00011506,2]
[323548378,1714081860983,-3087.99,0.00011506,2]
[323548379,1714081860992,-500.0,0.00011506,2]
[323548380,1714081861002,-558.40602367,0.00011506,2]
[323548381,1714081861011,-500.0,0.00011506,2]
[323548382,1714081861021,-500.0,0.00011506,2]
[323548383,1714081861030,-1277.97,0.00011506,2]
[323548384,1714081861039,-642.61,0.00011506,2]
[323548385,1714081861049,-500.0,0.00011506,2]
[323548386,1714081861058,-3494.83,0.00011506,2]
[323548387,1714081861068,-500.0,0.00011506,2]
[323548388,1714081861078,-500.0,0.00011506,2]
[323548389,1714081861087,-500.0,0.00011506,2]
[323548390,1714081861097,-500.0,0.00011506,2]
[323548391,1714081861106,-514.89954191,0.00011506,2]
[323548392,1714081861116,-834.72,0.00011506,2]
[323548393,1714081861127,-500.0,0.00011506,2]
[323548394,1714081861138,-752.24,0.00011506,2]
[323548395,1714081861149,-500.0,0.00011506,2]
[323548396,1714081861159,-265.97704112,0.00011506,2]
[323548397,1714081861169,-1182.2,0.00011506,2]
[323548398,1714081861179,-500.0,0.00011506,2]
[323548399,1714081861189,-1416.21,0.00011506,2]
[323548400,1714081861198,-500.0,0.00011506,2]
[323548401,1714081861207,-500.0,0.00011506,2]
[323548402,1714081861217,-500.0,0.00011506,2]
[323548403,1714081861226,-500.0,0.00011506,2]
[323548404,1714081861237,-500.0,0.00011506,2]
[323548405,1714081861247,-500.0,0.00011506,2]
[323548406,1714081861258,-500.0,0.00011506,2]
[323548407,1714081861269,-500.0,0.00011506,2]
[323548408,1714081861278,-500.0,0.00011506,2]
[323548409,1714081861287,-500.0,0.00011506,2]
[323548410,1714081861296,-500.0,0.00011506,2]
[323548411,1714081861305,-990.79,0.00011506,2]
[323548412,1714081861315,-500.0,0.00011506,2]
[323548413,1714081861324,-500.0,0.00011506,2]
[323548414,1714081861333,-500.0,0.00011506,2]
[323548415,1714081861343,-864.82,0.00011506,2]
[323548416,1714081861352,-726.6,0.00011506,2]
[323548417,1714081861361,-500.0,0.00011506,2]
[323548418,1714081861371,-787.05,0.00011506,2]
[323548419,1714081861379,-500.0,0.00011506,2]
[323548420,1714081861388,-2411.13,0.00011506,2]
[323548421,1714081861398,-692.11,0.00011506,2]
[323548422,1714081861406,-500.0,0.00011506,2]
[323548423,1714081861416,-500.0,0.00011506,2]
[323548424,1714081861426,-1152.75,0.00011506,2]
[323548425,1714081861435,-500.0,0.00011506,2]
[323548426,1714081861445,-500.0,0.00011506,2]
[323548427,1714081861454,-500.0,0.00011506,2]
[323548428,1714081861464,-500.0,0.00011506,2]
[323548429,1714081861473,-753.22,0.00011506,2]
[323548430,1714081861482,-500.0,0.00011506,2]
[323548431,1714081861491,-500.0,0.00011506,2]
[323548432,1714081861501,-667.44,0.00011506,2]
[323548433,1714081861510,-664.68,0.00011506,2]
[323548434,1714081861520,-666.27,0.00011506,2]
[323548435,1714081861530,-500.0,0.00011506,2]
[323548436,1714081861541,-213.1748176,0.00011506,2]
[323548437,1714081861551,-2119.45,0.00011506,2]
[323548438,1714081861560,-1171.3,0.00011506,2]
[323548439,1714081861570,-1288.62,0.00011506,2]
[323548440,1714081861580,-500.0,0.00011506,2]
[323548441,1714081861589,-860.38,0.00011506,2]
[323548442,1714081861599,-500.0,0.00011506,2]
[323548443,1714081861608,-500.0,0.00011506,2]
[323548444,1714081861618,-500.0,0.00011506,2]
[323548445,1714081861627,-500.0,0.00011506,2]
[323548446,1714081861638,-500.0,0.00011506,2]
[323548447,1714081861647,-5076.77,0.00011506,2]
[323548448,1714081861656,-624.91,0.00011506,2]
[323548449,1714081861666,-500.0,0.00011506,2]
[323548450,1714081861675,-1246.95,0.00011506,2]
[323548451,1714081861684,-500.0,0.00011506,2]
[323548452,1714081861694,-602.13,0.00011506,2]
[323548453,1714081861703,-500.0,0.00011506,2]
[323548454,1714081861713,-2069.18,0.00011506,2]
[323548455,1714081861722,-500.0,0.00011506,2]
[323548456,1714081861731,-500.0,0.00011506,2]
[323548457,1714081861740,-4861.32,0.00011506,2]
[323548458,1714081861750,-500.0,0.00011506,2]
[323548459,1714081861760,-1110.41,0.00011506,2]
[323548460,1714081861769,-500.0,0.00011506,2]
[323548461,1714081861778,-500.0,0.00011506,2]
[323548462,1714081861787,-1128.49,0.00011506,2]
[323548463,1714081861797,-816.23,0.00011506,2]
[323548464,1714081861806,-597.99,0.00011506,2]
[323548465,1714081861815,-500.0,0.00011506,2]
[323548466,1714081861824,-500.0,0.00011506,2]
[323548467,1714081861835,-5596.61,0.00011506,2]
[323548468,1714081861845,-500.0,0.00011506,2]
[323548469,1714081861854,-500.0,0.00011506,2]
[323548470,1714081861864,-500.0,0.00011506,2]
[323548471,1714081861873,-595.68846643,0.00011506,2]
[323548472,1714081861883,-1851.81,0.00011506,2]
[323548473,1714081861895,-500.0,0.00011506,2]
[323548474,1714081861905,-500.0,0.00011506,2]
[323548475,1714081861914,-155.53965833,0.00011506,2]
[323548476,1714081861923,-500.0,0.00011506,2]
[323548477,1714081861934,-500.0,0.00011506,2]
[323548478,1714081861942,-1648.87,0.00011506,2]
[323548479,1714081861951,-3524.18,0.00011506,2]
[323548480,1714081861961,-978.94,0.00011506,2]
[323548481,1714081861970,-651.94,0.00011506,2]
[323548482,1714081861979,-500.0,0.00011506,2]
[323548483,1714081861989,-845.93,0.00011506,2]
[323548484,1714081861998,-2301.86,0.00011506,2]
[323548485,1714081862008,-500.0,0.00011506,2]
[323548486,1714081862017,-500.0,0.00011506,2]
[323548487,1714081862176,-500.0,0.00011506,2]
[323548488,1714081862186,-829.66,0.00011506,2]
[323548489,1714081862196,-500.0,0.00011506,2]
[323548490,1714081862205,-500.0,0.00011506,2]
[323548491,1714081862214,-500.0,0.00011506,2]
[323548492,1714081862224,-2908.4,0.00011506,2]
[323548493,1714081862234,-582.33,0.00011506,2]
[323548494,1714081862243,-500.0,0.00011506,2]
[323548495,1714081862252,-3930.07,0.00011506,2]
[323548496,1714081862262,-500.0,0.00011506,2]
[323548497,1714081862271,-1260.23,0.00011506,2]
[323548498,1714081862280,-500.0,0.00011506,2]
[323548499,1714081862290,-500.0,0.00011506,2]
[323548500,1714081862299,-500.0,0.00011506,2]
[323548501,1714081862308,-500.0,0.00011506,2]
[323548502,1714081862317,-938.98,0.00011506,2]
[323548503,1714081862327,-611.39,0.00011506,2]
[323548504,1714081862336,-1095.42,0.00011506,2]
[323548505,1714081862345,-500.0,0.00011506,2]
[323548506,1714081862354,-500.0,0.00011506,2]
[323548507,1714081862363,-763.68,0.00011506,2]
[323548508,1714081862372,-500.0,0.00011506,2]
[323548509,1714081862382,-1440.24,0.00011506,2]
[323548510,1714081862391,-500.0,0.00011506,2]
[323548511,1714081862400,-1308.62,0.00011506,2]
[323548512,1714081862409,-500.0,0.00011506,2]
[323548513,1714081862418,-631.95,0.00011506,2]
[323548514,1714081862428,-523.86,0.00011506,2]
[323548515,1714081862438,-616.22,0.00011506,2]
[323548516,1714081862447,-2611.7,0.00011506,2]
[323548517,1714081862457,-662.38,0.00011506,2]
[323548518,1714081862467,-500.0,0.00011506,2]
[323548519,1714081862476,-1944.4,0.00011506,2]
[323548520,1714081862486,-500.0,0.00011506,2]
[323548521,1714081862497,-500.0,0.00011506,2]
[323548522,1714081862506,-500.0,0.00011506,2]
[323548523,1714081862515,-500.0,0.00011506,2]
[323548524,1714081862525,-500.0,0.00011506,2]
[323548525,1714081862534,-518.44,0.00011506,2]
[323548526,1714081862544,-2426.09,0.00011506,2]
[323548527,1714081862554,-500.0,0.00011506,2]
[323548528,1714081862564,-1261.19,0.00011506,2]
[323548529,1714081862574,-500.0,0.00011506,2]
[323548530,1714081862584,-500.0,0.00011506,2]
[323548531,1714081862598,-1448.77,0.00011506,2]
[323548532,1714081862619,-500.0,0.00011506,2]
[323548533,1714081862639,-627.01,0.00011506,2]
[323548534,1714081862659,-500.0,0.00011506,2]
[323548535,1714081862681,-3691.38,0.00011506,2]
[323548536,1714081862699,-2299.07,0.00011506,2]
[323548537,1714081862709,-500.0,0.00011506,2]
[323548538,1714081862720,-500.0,0.00011506,2]
[323548539,1714081862739,-500.0,0.00011506,2]
[323548540,1714081862758,-1410.93,0.00011506,2]
[323548541,1714081862776,-3181.94,0.00011506,2]
[323548542,1714081862786,-500.0,0.00011506,2]
[323548543,1714081862795,-500.0,0.00011506,2]
[323548544,1714081862805,-500.0,0.00011506,2]
[323548545,1714081862815,-500.0,0.00011506,2]
[323548546,1714081862824,-2472.3,0.00011506,2]
[323548547,1714081862833,-500.0,0.00011506,2]
[323548548,1714081862843,-626.7,0.00011506,2]
[323548549,1714081862852,-500.0,0.00011506,2]
[323548550,1714081862861,-3834.71,0.00011506,2]
[323548551,1714081862872,-500.0,0.00011506,2]
[323548552,1714081862881,-6634.49,0.00011506,2]
[323548553,1714081862892,-500.0,0.00011506,2]
[323548554,1714081862902,-500.0,0.00011506,2]
[323548555,1714081862911,-500.0,0.00011506,2]
[323548556,1714081862921,-500.0,0.00011506,2]
[323548557,1714081862931,-500.0,0.00011506,2]
[323548558,1714081862941,-979.31,0.00011506,2]
[323548559,1714081862950,-601.72,0.00011506,2]
[323548560,1714081862961,-500.0,0.00011506,2]
[323548561,1714081862970,-500.0,0.00011506,2]
[323548562,1714081862980,-500.0,0.00011506,2]
[323548563,1714081862989,-150.0,0.0001153,2]
[323548564,1714081862999,-3900.0,0.000116,4]
[323548565,1714081863009,-1000.0,0.000116,2]
[323548566,1714081863018,-5396.08844406,0.00011614,2]
[323548567,1714081863028,-150.0,0.0001166,2]
[323548568,1714081863039,-201.6932777,0.0001168,2]
[323548569,1714081863048,-177.02889109,0.0001168,2]
[323548570,1714081863058,-199.99843923,0.0001168,2]
[323548571,1714081863066,-700.0,0.000117,4]
[323548572,1714081863076,-4050.2,0.00011759,2]
[323548573,1714081863085,-2185.61,0.00011759,2]
[323548574,1714081863095,-11127.02,0.00011759,2]
[323548575,1714081863104,-500.0,0.00011759,2]
[323548576,1714081863114,-1487.61,0.00011759,2]
[323548577,1714081863123,-7800.37,0.00011759,2]
[323548578,1714081863132,-1147.75443848,0.0001176,2]
[323548579,1714081863142,-5396.08844406,0.00011775,2]
[323548580,1714081863152,-247.6312833,0.00011778,2]
[323548581,1714081863161,-13261.2297448,0.0001178,2]
[323548582,1714081863170,-547542.32056409,0.0001178,2]
[323548583,1714081863180,-532.76,0.0001178,2]
[323548584,1714081863189,-500.0,0.0001178,2]
[323548585,1714081863198,-1110.67,0.0001178,2]
[323548586,1714081863207,-182.1,0.0001178,2]
[323548587,1714081863216,-500.0,0.0001178,2]
[323548588,1714081863226,-500.0,0.0001178,2]
[323548589,1714081863236,-500.0,0.0001178,2]
[323548590,1714081863245,-500.0,0.0001178,2]
[323548591,1714081863254,-500.0,0.0001178,2]
[323548592,1714081863263,-500.0,0.0001178,2]
[323548593,1714081863272,-500.0,0.0001178,2]
[323548594,1714081863282,-500.0,0.0001178,2]
[323548595,1714081863291,-647.46733904,0.0001178,2]
[323548596,1714081863300,-1026.0,0.0001178,2]
[323548597,1714081863309,-500.0,0.0001178,2]
[323548598,1714081863318,-988.86,0.0001178,2]
[323548599,1714081863328,-500.0,0.0001178,2]
[323548600,1714081863337,-500.0,0.0001178,2]
[323548601,1714081863346,-500.0,0.0001178,2]
[323548602,1714081863355,-410.18414133,0.0001178,2]
[323548603,1714081863365,-500.0,0.0001178,2]
[323548604,1714081863374,-1196.94,0.0001178,2]
[323548605,1714081863383,-1166.94,0.0001178,2]
[323548606,1714081863392,-1758.6,0.0001178,2]
[323548607,1714081863402,-500.0,0.0001178,2]
[323548608,1714081863411,-500.0,0.0001178,2]
[323548609,1714081863421,-482.79598071,0.0001178,2]
[323548610,1714081863430,-1089.52,0.0001178,2]
[323548611,1714081863439,-1041.95,0.0001178,2]
[323548612,1714081863449,-540.63650867,0.0001178,2]
[323548613,1714081863458,-500.0,0.0001178,2]
[323548614,1714081863467,-500.0,0.0001178,2]
[323548615,1714081863477,-500.0,0.0001178,2]
[323548616,1714081863486,-500.0,0.0001178,2]
[323548617,1714081863495,-542.86,0.0001178,2]
[323548618,1714081863504,-338.82634515,0.0001178,2]
[323548619,1714081863513,-500.0,0.0001178,2]
[323548620,1714081863523,-203.88,0.0001178,2]
[323548621,1714081863532,-967.7,0.0001178,2]
[323548622,1714081863541,-972.55,0.0001178,2]
[323548623,1714081863551,-500.0,0.0001178,2]
[323548624,1714081863560,-500.0,0.0001178,2]
[323548625,1714081863569,-500.0,0.0001178,2]
[323548626,1714081863579,-500.0,0.0001178,2]
[323548627,1714081863588,-166.69,0.0001178,2]
[323548628,1714081863597,-441.91466087,0.0001178,2]
[323548629,1714081863607,-344.94,0.0001178,2]
[323548630,1714081863616,-1272.01,0.0001178,2]
[323548631,1714081863626,-500.0,0.0001178,2]
[323548632,1714081863635,-1158.77,0.0001178,2]
[323548633,1714081863644,-500.0,0.0001178,2]
[323548634,1714081863653,-500.0,0.0001178,2]
[323548635,1714081863662,-500.0,0.0001178,2]
[323548636,1714081863671,-500.0,0.0001178,2]
[323548637,1714081863680,-500.0,0.0001178,2]
[323548638,1714081863689,-508.84383238,0.0001178,2]
[323548639,1714081863698,-500.0,0.0001178,2]
[323548640,1714081863707,-500.0,0.0001178,2]
[323548641,1714081863717,-500.0,0.0001178,2]
[323548642,1714081863726,-500.0,0.0001178,2]
[323548643,1714081863735,-500.0,0.0001178,2]
[323548644,1714081863744,-500.0,0.0001178,2]
[323548645,1714081863753,-500.0,0.0001178,2]
[323548646,1714081863762,-500.0,0.0001178,2]
[323548647,1714081863771,-500.0,0.0001178,2]
[323548648,1714081863781,-500.0,0.0001178,2]
[323548649,1714081863790,-592.67,0.0001178,2]
[323548650,1714081863799,-500.0,0.0001178,2]
[323548651,1714081863808,-500.0,0.0001178,2]
[323548652,1714081863817,-500.0,0.0001178,2]
[323548653,1714081863826,-500.0,0.0001178,2]
[323548654,1714081863835,-500.0,0.0001178,2]
[323548655,1714081863844,-833.48,0.0001178,2]
[323548656,1714081863853,-1199.25,0.0001178,2]
[323548657,1714081863862,-283.63494661,0.0001178,2]
[323548658,1714081863874,-500.0,0.0001178,2]
[323548659,1714081863887,-1311.09,0.0001178,2]
[323548660,1714081863896,-500.0,0.0001178,2]
[323548661,1714081863906,-1187.95,0.0001178,2]
[323548662,1714081863915,-500.0,0.0001178,2]
[323548663,1714081863925,-500.0,0.0001178,2]
[323548664,1714081863935,-500.0,0.0001178,2]
[323548665,1714081863944,-500.0,0.0001178,2]
[323548666,1714081863954,-500.0,0.0001178,2]
[323548667,1714081863965,-500.0,0.0001178,2]
[323548668,1714081863974,-500.0,0.0001178,2]
[323548669,1714081863983,-500.0,0.0001178,2]
[323548670,1714081863992,-799.69,0.0001178,2]
[323548671,1714081864002,-500.0,0.0001178,2]
[323548672,1714081864011,-627.61012686,0.0001178,2]
[323548673,1714081864021,-630.67,0.0001178,2]
[323548674,1714081864030,-500.0,0.0001178,2]
[323548675,1714081864040,-500.0,0.0001178,2]
[323548676,1714081864049,-500.0,0.0001178,2]
[323548677,1714081864058,-615.97,0.0001178,2]
[323548678,1714081864067,-500.0,0.0001178,2]
[323548679,1714081864077,-652.64,0.0001178,2]
[323548680,1714081864086,-500.0,0.0001178,2]
[323548681,1714081864095,-1422.91,0.0001178,2]
[323548682,1714081864104,-500.0,0.0001178,2]
[323548683,1714081864114,-500.0,0.0001178,2]
[323548684,1714081864123,-500.0,0.0001178,2]
[323548685,1714081864132,-500.0,0.0001178,2]
[323548686,1714081864142,-500.0,0.0001178,2]
[323548687,1714081864151,-500.0,0.0001178,2]
[323548688,1714081864160,-500.0,0.0001178,2]
[323548689,1714081864169,-500.0,0.0001178,2]
[323548690,1714081864178,-500.0,0.0001178,2]
[323548691,1714081864187,-500.0,0.0001178,2]
[323548692,1714081864196,-858.41,0.0001178,2]
[323548693,1714081864205,-500.0,0.0001178,2]
[323548694,1714081864214,-1211.34,0.0001178,2]
[323548695,1714081864223,-500.0,0.0001178,2]
[323548696,1714081864233,-500.0,0.0001178,2]
[323548697,1714081864242,-605.93,0.0001178,2]
[323548698,1714081864258,-500.0,0.0001178,2]
[323548699,1714081864282,-500.0,0.0001178,2]
[323548700,1714081864309,-572.85,0.0001178,2]
[323548701,1714081864341,-500.0,0.0001178,2]
[323548702,1714081864374,-500.0,0.0001178,2]
[323548703,1714081864408,-547.87,0.0001178,2]
[323548704,1714081864439,-500.0,0.0001178,2]
[323548705,1714081864461,-500.0,0.0001178,2]
[323548706,1714081864470,-548.76,0.0001178,2]
[323548707,1714081864479,-500.0,0.0001178,2]
[323548708,1714081864489,-500.0,0.0001178,2]
[323548709,1714081864498,-500.0,0.0001178,2]
[323548710,1714081864507,-500.0,0.0001178,2]
[323548711,1714081864516,-500.0,0.0001178,2]
[323548712,1714081864525,-500.0,0.0001178,2]
[323548713,1714081864534,-500.0,0.0001178,2]
[323548714,1714081864543,-500.0,0.0001178,2]
[323548715,1714081864552,-500.0,0.0001178,2]
[323548716,1714081864561,-500.0,0.0001178,2]
[323548717,1714081864570,-500.0,0.0001178,2]
[323548718,1714081864579,-500.0,0.0001178,2]
[323548719,1714081864588,-500.0,0.0001178,2]
[323548720,1714081864596,-500.0,0.0001178,2]
[323548721,1714081864602,-500.0,0.0001178,2]
[323548722,1714081864608,-958.55,0.0001178,2]
[323548723,1714081864616,-500.0,0.0001178,2]
[323548724,1714081864622,-500.0,0.0001178,2]
[323548725,1714081864628,-500.0,0.0001178,2]
[323548726,1714081864635,-500.0,0.0001178,2]
[323548727,1714081864641,-500.0,0.0001178,2]
[323548728,1714081864794,-500.0,0.0001178,2]
[323548729,1714081864804,-500.0,0.0001178,2]
[323548730,1714081864814,-500.0,0.0001178,2]
[323548731,1714081864823,-500.0,0.0001178,2]
[323548732,1714081864833,-500.0,0.0001178,2]
[323548733,1714081864842,-558.11,0.0001178,2]
[323548734,1714081864852,-500.0,0.0001178,2]
[323548735,1714081864861,-500.0,0.0001178,2]
[323548736,1714081864872,-500.0,0.0001178,2]
[323548737,1714081864881,-500.0,0.0001178,2]
[323548738,1714081864894,-569.21,0.0001178,2]
[323548739,1714081864903,-500.0,0.0001178,2]
[323548740,1714081864913,-500.0,0.0001178,2]
[323548741,1714081864923,-500.0,0.0001178,2]
[323548742,1714081864933,-500.0,0.0001178,2]
[323548743,1714081864943,-500.0,0.0001178,2]
[323548744,1714081864953,-500.0,0.0001178,2]
[323548745,1714081864964,-500.0,0.0001178,2]
[323548746,1714081864974,-500.0,0.0001178,2]
[323548747,1714081864984,-500.0,0.0001178,2]
[323548748,1714081864993,-705.0,0.0001178,2]
[323548749,1714081865003,-500.0,0.0001178,2]
[323548750,1714081865012,-500.0,0.0001178,2]
[323548751,1714081865022,-500.0,0.0001178,2]
[323548752,1714081865031,-500.0,0.0001178,2]
[323548753,1714081865041,-500.0,0.0001178,2]
[323548754,1714081865051,-500.0,0.0001178,2]
[323548755,1714081865062,-647.95,0.0001178,2]
[323548756,1714081865072,-500.0,0.0001178,2]
[323548757,1714081865082,-500.0,0.0001178,2]
[323548758,1714081865092,-500.0,0.0001178,2]
[323548759,1714081865102,-500.0,0.0001178,2]
[323548760,1714081865112,-500.0,0.0001178,2]
[323548761,1714081865122,-500.0,0.0001178,2]
[323548762,1714081865132,-1368.96,0.0001178,2]
[323548763,1714081865141,-500.0,0.0001178,2]
[323548764,1714081865150,-500.0,0.0001178,2]
[323548765,1714081865160,-500.0,0.0001178,2]
[323548766,1714081865170,-500.0,0.0001178,2]
[323548767,1714081865180,-500.0,0.0001178,2]
[323548768,1714081865190,-500.0,0.0001178,2]
[323548769,1714081865199,-500.0,0.0001178,2]
[323548770,1714081865209,-500.0,0.0001178,2]
[323548771,1714081865219,-500.0,0.0001178,2]
[323548772,1714081865229,-500.0,0.0001178,2]
[323548773,1714081865239,-500.0,0.0001178,2]
[323548774,1714081865249,-500.0,0.0001178,2]
[323548775,1714081865258,-195.75752497,0.0001178,2]
[323548776,1714081865268,-500.0,0.0001178,2]
[323548777,1714081865282,-500.0,0.0001178,2]
[323548778,1714081865292,-500.0,0.0001178,2]
[323548779,1714081865302,-500.0,0.0001178,2]
[323548780,1714081865312,-785.04,0.0001178,2]
[323548781,1714081865321,-500.0,0.0001178,2]
[323548782,1714081865330,-500.0,0.0001178,2]
[323548783,1714081865339,-500.0,0.0001178,2]
[323548784,1714081865349,-500.0,0.0001178,2]
[323548785,1714081865359,-500.0,0.0001178,2]
[323548786,1714081865369,-500.0,0.0001178,2]
[323548787,1714081865379,-500.0,0.0001178,2]
[323548788,1714081865388,-500.0,0.0001178,2]
[323548789,1714081865398,-500.0,0.0001178,2]
[323548790,1714081865408,-602.51,0.0001178,2]
[323548791,1714081865417,-500.0,0.0001178,2]
[323548792,1714081865427,-1333.13,0.0001178,2]
[323548793,1714081865437,-578.85,0.0001178,2]
[323548794,1714081865446,-500.0,0.0001178,2]
[323548795,1714081865456,-1217.97,0.0001178,2]
[323548796,1714081865467,-500.0,0.0001178,2]
[323548797,1714081865477,-500.0,0.0001178,2]
[323548798,1714081865487,-500.0,0.0001178,2]
[323548799,1714081865496,-500.0,0.0001178,2]
[323548800,1714081865506,-500.0,0.0001178,2]
[323548801,1714081865516,-500.0,0.0001178,2]
[323548802,1714081865526,-500.0,0.0001178,2]
[323548803,1714081865536,-500.0,0.0001178,2]
[323548804,1714081865547,-1270.53,0.0001178,2]
[323548805,1714081865557,-551.87,0.0001178,2]
[323548806,1714081865567,-500.0,0.0001178,2]
[323548807,1714081865577,-500.0,0.0001178,2]
[323548808,1714081865586,-500.0,0.0001178,2]
[323548809,1714081865596,-500.0,0.0001178,2]
[323548810,1714081865606,-500.0,0.0001178,2]
[323548811,1714081865616,-1135.17,0.0001178,2]
[323548812,1714081865626,-500.0,0.0001178,2]
[323548813,1714081865635,-1397.91,0.0001178,2]
[323548814,1714081865646,-500.0,0.0001178,2]
[323548815,1714081865657,-150.0,0.0001178,2]
[323548816,1714081865669,-500.0,0.0001178,2]
[323548817,1714081865679,-500.0,0.0001178,2]
[323548818,1714081865689,-500.0,0.0001178,2]
[323548819,1714081865699,-500.0,0.0001178,2]
[323548820,1714081865709,-500.0,0.0001178,2]